{"text_format":"1","workbook":"xlsx","n_sheets":5,"sheets":["Лист1","тест","связь","база","Рекомендации"],"not_rendered":{"charts":0,"images":0,"macros":1,"external_links":0,"defined_names":3,"comments":0,"pivot_tables":0},"unopened":[],"bounds":{"document_bytes":16777216,"sheet_cells":100000,"rows_first":2000,"rows_last":500,"rows_between":2000,"halvings":0,"cell_chars":16384,"cell_head_chars":4096},"cells_cut":0,"cells_raw":0,"read":"whole","date_system":"1900"}

{"sheet":"Лист1","index":0,"n_rows":67,"n_cols":29,"rows_kept":67,"cut":false,"hidden":true,"merged":[[0,27,25,27],[0,28,25,28],[0,18,25,18],[0,19,25,19],[0,20,25,20],[0,21,25,21],[0,24,25,24],[0,25,25,25],[0,26,25,26],[0,22,25,22],[0,23,25,23],[0,16,25,16],[0,17,25,17],[0,10,25,10],[0,11,25,11],[0,12,25,12],[0,13,25,13],[0,5,25,5],[0,2,25,2],[52,2,52,4],[0,14,25,14],[0,15,25,15],[0,6,25,6],[0,4,25,4],[0,7,25,7],[0,8,25,8],[0,9,25,9],[0,3,25,3],[26,1,26,3]]}
[null,null,"Я планирую работать на управленческой позиции","Мое преимущество - в умении общаться с людьми","У меня получается ручной труд (лепка, рисование)","Я бы хотел (а)  работать там, где используются значения иночтранного языка ","Я люблю детей и хотел бы с ними работать","Мне нравится заниматься продвижением с помощью социальных сетей","Главное для меня - быть мастером в цифровой среде","Я  с детства любил (а) оперировать  цифрами/считать","Мне очень нравится организация и оформление праздников","У меня хороший вкус, я интересуюсь одеждой  и/или ","Мне интересно сыроварение","Я с детства любил (а)  продавать/играть в магазин","Мне нравятся путешествия,я бы хотел (а) развивать туризм","Мне важно помогать людям, быть здоровым и красивым","Я хорошо осваиваю новые программы и дивайсы","Я хорошо ориентируюсь во времени и пространстве, могу планировать и конструировать реальность","У меня есть личный опыт ЖКХ  деятельности","Я люблю кофе и все, что с ним связано","У меня есть опыт взаимодействия с детьми ОВЗ","Я интресуюсь психологией/мне интресно понять и помочь человеку","У меня есть свой бизнес /я управляю бизнесом","Я знаком с работой колл-центра","Я люблю спорт и увлекаюсь им ","Мне хочется помогать людям с выбором профессии","Я хочу работать на гос и/или муниц. службе","Я вынослив (а) и работоспособен (работоспособна)","Я люблю готовить и/или пользоваться кухонной техникой"]
[]
[]
[]
[]
[]
[]
[]
[]
[]
[]
[]
[]
[]
[]
[]
[]
[]
[]
[]
[]
[]
[]
[]
[]
[null,"Полное наименование  программы обучения "]
[null,"Психологические и коммуникативные программы"]
[1,"Деловые и межкультурные коммуникации: русский и иностранный языки"]
[2,"Сопровождение протокольных мероприятий и кросскультурные коммуникации"]
[3,"Профориентационный коучинг"]
[4,"Профориентационный консультант. Игропрактик."]
[5,"Практическая психология и коучинг"]
[6,"Метафорические техники в психологическом консультировании и бизнес-тренинге"]
[7,"Создание и продвижение личного бренда"]
[8,"Инструктор - игромастер детских развивающих программ"]
[9,"Инструктор- игротехнолог по работе с детьми с ОВЗ"]
[10,"Инструктор активного долголетия"]
[11,"Наставник по экономической социализации детей и подростков"]
[null,"Цифровые программы"]
[12,"Цифровой куратор"]
[13,"Адаптация к цифровой среде и цифровая грамотность"]
[14,"Web - дизайн, продвижение  и сопровождение  сайта"]
[15,"Менеджмент продаж и digital маркетинг, SMM"]
[null,"Управленческие программы"]
[16,"Управление  салоном красоты"]
[17,"Операционный менеджмент"]
[18,"Стратегический маркетинг"]
[19,"Управляющий контактным центром"]
[20,"Стратегический менеджмент и управление персоналом"]
[21,"Системный менеджмент и основные инструменты бережливого производства"]
[22,"Логистика и управление закупками"]
[23,"Финансовая безопасность бизнеса"]
[null,"Прикладные программы "]
[24,"Бариста"]
[25,"Барбер"]
[26,"Детские стрижки: профессиональные и психологические аспекты "]
[27,"Няня. Специалист в области воспитания."]
[28,"Менеджер по жилищно-коммунальным услугам"]
[29,"Эффективное  управление многоквартирным домом в условиях современной экономики"]
[30,"Координатор-организатор праздничных мероприятий "]
[31,"Декоратор праздничных мероприятий"]
[32,"Дизайн среды и декорирование"]
[33,"Стилист-имиджмейкер"]
[34,"Современные технологии здорового питания"]
[35,"Специалист по агротуризму"]
[36,"Российский и международный сервис и  туризм"]
[37,"Сыровар "]

{"sheet":"тест","index":1,"n_rows":1,"n_cols":1,"rows_kept":1,"cut":false,"hidden":false,"merged":[[0,0,0,6]]}
["Выберите наиболее подходящие для Вас ответы. \nпри работе с файлом нужно включить макросы \n(безопасность - параметры - включить это содержимое)"]

{"sheet":"связь","index":2,"n_rows":28,"n_cols":2,"rows_kept":28,"cut":false,"hidden":true,"merged":[]}
[null,{"$f":"IF(A1=TRUE,1,0)","v":0}]
[null,{"$f":"IF(A2=TRUE,1,0)","v":0}]
[null,0]
[false,0]
[null,0]
[null,0]
[null,0]
[false,0]
[false,0]
[null,0]
[null,0]
[null,0]
[null,0]
[false,0]
[null,0]
[null,0]
[null,0]
[null,0]
[null,0]
[null,0]
[null,0]
[null,0]
[null,0]
[null,0]
[null,0]
[null,0]
[null,0]
[false,0]

{"sheet":"база","index":3,"n_rows":42,"n_cols":31,"rows_kept":42,"cut":false,"hidden":true,"merged":[]}
[null,null,"Я планирую работать на управленческой позиции","Мое преимущество - в умении общаться с людьми","У меня получается ручной труд (лепка, рисование,  парикмахерство)","Я бы хотел (а)  работать там, где используются значения иностранного языка ","Я люблю детей и хотел бы с ними работать","Мне нравится заниматься продвижением с помощью социальных сетей","Главное для меня - быть мастером в цифровой среде","Я  с детства любил (а) оперировать  цифрами/считать","Мне очень нравится организация и оформление праздников","У меня хороший вкус, я интересуюсь одеждой  и/или интерьером","Мне интересно сыроварение","Я с детства любил (а)  продавать/играть в магазин","Мне нравятся путешествия,я бы хотел (а) развивать туризм","Мне важно помогать людям/быть здоровым и красивым","Я хорошо осваиваю новые программы и дивайсы","Я хорошо ориентируюсь во времени и пространстве, могу планировать и конструировать реальность","У меня есть личный опыт ЖКХ  деятельности","Я люблю кофе и все, что с ним связано","У меня есть опыт взаимодействия с детьми ОВЗ","Я интересуюсь психологией/мне интересно понять и помочь человеку","У меня есть свой бизнес /я управляю бизнесом","Я знаком с работой колл-центра","Я люблю спорт и увлекаюсь им ","Мне хочется помогать людям с выбором профессии","Я хочу работать на гос и/или муниц. службе","Я вынослив (а) и работоспособен (работоспособна)","Я хорошо различаю вкусы и запахи","Я люблю готовить и/или пользоваться кухонной техникой"]
["Полное наименование  программы обучения ",null,{"$f":"связь!B1","v":0},{"$f":"связь!B2","v":0},{"$f":"связь!B3","v":0},{"$f":"связь!B4","v":0},{"$f":"связь!B5","v":0},{"$f":"связь!B6","v":0},{"$f":"связь!B7","v":0},{"$f":"связь!B8","v":0},{"$f":"связь!B9","v":0},{"$f":"связь!B10","v":0},{"$f":"связь!B11","v":0},{"$f":"связь!B12","v":0},{"$f":"связь!B13","v":0},{"$f":"связь!B14","v":0},{"$f":"связь!B15","v":0},{"$f":"связь!B16","v":0},{"$f":"связь!B17","v":0},{"$f":"связь!B18","v":0},{"$f":"связь!B19","v":0},{"$f":"связь!B20","v":0},{"$f":"связь!B21","v":0},{"$f":"связь!B22","v":0},{"$f":"связь!B23","v":0},{"$f":"связь!B24","v":0},{"$f":"связь!B25","v":0},{"$f":"связь!B26","v":0},{"$f":"связь!B27","v":0},{"$f":"связь!B28","v":0}]
["Деловые и межкультурные коммуникации: русский и иностранный языки",{"$f":"SUM(C3:AD3)","v":0},{"$f":"IF(C$2=1,1,0)","v":0},{"$f":"IF(D$2=1,1,0)","v":0},null,{"$f":"IF(F$2=1,1,0)","v":0},null,null,null,null,null,null,null,null,{"$f":"IF(O$2=1,1,0)","v":0},null,null,null,null,null,null,null,null,null,null,null,null,null,null,null,{"$f":"SUM(C3:AD3)","v":0}]
["Сопровождение протокольных мероприятий и кросскультурные коммуникации",{"$f":"SUM(C4:AD4)","v":0},{"$f":"IF(C$2=1,1,0)","v":0},{"$f":"IF(D$2=1,1,0)","v":0},null,{"$f":"IF(F$2=1,1,0)","v":0},null,null,null,null,null,null,null,null,null,null,null,null,null,null,null,null,null,null,null,null,{"$f":"IF(AA$2=1,1,0)","v":0},null,null,null,{"$f":"SUM(C4:AD4)","v":0}]
["Профориентационный коучинг",0,null,{"$f":"IF(D$2=1,1,0)","v":0},null,null,{"$f":"IF(G$2=1,1,0)","v":0},null,null,null,null,null,null,null,null,null,null,null,null,null,null,{"$f":"IF(V$2=1,1,0)","v":0},null,null,null,{"$f":"IF(Z$2=1,1,0)","v":0},null,null,null,null,0]
["Профориентационный консультант. Игропрактик.",0,null,0,null,null,{"$f":"IF(G$2=1,1,0)","v":0},null,null,null,null,null,null,null,null,null,null,null,null,null,null,{"$f":"IF(V$2=1,1,0)","v":0},null,null,null,{"$f":"IF(Z$2=1,1,0)","v":0},null,null,null,null,0]
["Практическая психология и коучинг",0,{"$f":"IF(C$2=1,1,0)","v":0},0,null,null,null,null,null,null,null,null,null,null,null,null,null,null,null,null,null,{"$f":"IF(V$2=1,1,0)","v":0},null,null,null,{"$f":"IF(Z$2=1,1,0)","v":0},null,null,null,null,0]
["Метафорические техники в психологическом консультировании и бизнес-тренинге",0,null,0,null,null,null,null,null,null,null,null,null,null,null,null,null,{"$f":"IF(R$2=1,1,0)","v":0},null,null,null,{"$f":"IF(V$2=1,1,0)","v":0},null,null,null,{"$f":"IF(Z$2=1,1,0)","v":0},null,null,null,null,0]
["Создание и продвижение личного бренда",0,null,0,null,null,null,{"$f":"IF(H$2=1,1,0)","v":0},null,null,null,{"$f":"IF(L$2=1,1,0)","v":0},null,{"$f":"IF(N$2=1,1,0)","v":0},null,null,null,null,null,null,null,null,null,null,null,null,null,null,null,null,0]
["Инструктор - игромастер детских развивающих программ",0,null,0,null,null,{"$f":"IF(G$2=1,1,0)","v":0},null,null,null,null,null,null,null,null,null,null,{"$f":"IF(R$2=1,1,0)","v":0},null,null,null,null,null,null,null,{"$f":"IF(Z$2=1,1,0)","v":0},null,null,null,null,0]
["Инструктор- игротехнолог по работе с детьми с ОВЗ",0,null,0,null,null,{"$f":"IF(G$2=1,1,0)","v":0},null,null,null,null,null,null,null,null,null,null,{"$f":"IF(R$2=1,1,0)","v":0},null,null,{"$f":"IF(U$2=1,1,0)","v":0},null,null,null,null,null,null,null,null,null,0]
["Инструктор активного долголетия",0,null,0,null,null,null,null,null,null,null,null,null,null,null,{"$f":"IF(P$2=1,1,0)","v":0},null,null,null,null,null,{"$f":"IF(V$2=1,1,0)","v":0},null,null,{"$f":"IF(Y$2=1,1,0)","v":0},null,null,null,null,null,0]
["Наставник по экономической социализации детей и подростков",0,null,0,null,null,{"$f":"IF(G$2=1,1,0)","v":0},null,null,{"$f":"IF(J$2=1,1,0)","v":0},null,null,null,null,null,null,null,null,null,null,null,null,null,null,null,{"$f":"IF(Z$2=1,1,0)","v":0},null,null,null,null,0]
["Цифровой куратор",0,null,null,null,null,null,{"$f":"IF(H$2=1,1,0)","v":0},0,{"$f":"IF(J$2=1,1,0)","v":0},null,null,null,null,null,null,{"$f":"IF(Q$2=1,1,0)","v":0},null,null,null,null,null,null,null,null,null,null,null,null,null,0]
["Адаптация к цифровой среде и цифровая грамотность",0,null,null,null,null,null,0,0,{"$f":"IF(J$2=1,1,0)","v":0},null,null,null,null,null,null,{"$f":"IF(Q$2=1,1,0)","v":0},null,null,null,null,null,null,null,null,null,null,null,null,null,0]
["Web - дизайн, продвижение  и сопровождение  сайта",0,null,null,null,null,null,0,0,null,null,{"$f":"IF(L$2=1,1,0)","v":0},null,null,null,null,{"$f":"IF(Q$2=1,1,0)","v":0},null,null,null,null,null,null,null,null,null,null,null,null,null,0]
["Менеджмент продаж и digital маркетинг, SMM",0,null,null,null,null,null,0,0,null,null,null,null,{"$f":"IF(N$2=1,1,0)","v":0},null,null,{"$f":"IF(Q$2=1,1,0)","v":0},null,null,null,null,null,null,null,null,null,null,null,null,null,0]
["Управление  салоном красоты",0,{"$f":"IF(C$2=1,1,0)","v":0},0,null,null,null,null,null,null,null,{"$f":"IF(L$2=1,1,0)","v":0},null,null,null,{"$f":"IF(P$2=1,1,0)","v":0},null,null,null,null,null,null,null,null,null,null,null,null,null,null,0]
["Операционный менеджмент",0,0,0,null,null,null,null,null,{"$f":"IF(J$2=1,1,0)","v":0},null,null,null,null,null,null,null,{"$f":"IF(R$2=1,1,0)","v":0},null,null,null,null,null,null,null,null,null,null,null,null,0]
["Стратегический маркетинг",0,0,0,null,null,null,null,null,null,null,null,null,{"$f":"IF(N$2=1,1,0)","v":0},null,null,null,0,null,null,null,null,null,null,null,null,null,null,null,null,0]
["Управляющий контактным центром",0,0,0,null,null,null,null,null,null,null,null,null,null,null,null,null,0,null,null,null,null,null,{"$f":"IF(X$2=1,1,0)","v":0},null,null,null,null,null,null,0]
["Стратегический менеджмент и управление персоналом",0,0,0,null,null,null,null,null,null,null,null,null,null,null,null,null,0,null,null,null,{"$f":"IF(V$2=1,1,0)","v":0},null,null,null,null,null,null,null,null,0]
["Системный менеджмент и основные инструменты бережливого производства",0,0,0,null,null,null,null,null,{"$f":"IF(J$2=1,1,0)","v":0},null,null,null,null,null,null,null,0,null,null,null,null,null,null,null,null,null,null,null,null,0]
["Логистика и управление закупками",0,{"$f":"IF(C$2=1,1,0)","v":0},null,null,null,null,null,null,null,null,null,null,{"$f":"IF(N$2=1,1,0)","v":0},null,null,{"$f":"IF(Q$2=1,1,0)","v":0},0,null,null,null,null,null,null,null,null,null,null,null,null,0]
["Финансовая безопасность бизнеса",0,{"$f":"IF(C$2=1,1,0)","v":0},null,null,null,null,null,null,{"$f":"IF(J$2=1,1,0)","v":0},null,null,null,null,null,null,null,0,null,null,null,null,{"$f":"IF(W$2=1,1,0)","v":0},null,null,null,null,null,null,null,0]
["Бариста",0,null,{"$f":"IF(D$2=1,1,0)","v":0},0,null,null,null,null,null,null,null,null,null,null,null,null,null,null,{"$f":"IF(T$2=1,1,0)","v":0},null,null,null,null,null,null,null,null,{"$f":"IF(AC$2=1,1,0)","v":0},null,0]
["Барбер",0,null,0,0,null,null,null,null,null,null,{"$f":"IF(L$2=1,1,0)","v":0},null,null,null,{"$f":"IF(P$2=1,1,0)","v":0},null,null,null,null,null,null,null,null,null,null,null,null,null,null,0]
["Детские стрижки: профессиональные и психологические аспекты ",0,null,0,0,null,{"$f":"IF(G$2=1,1,0)","v":0},null,null,null,null,null,null,null,null,null,null,null,null,null,null,{"$f":"IF(V$2=1,1,0)","v":0},null,null,null,null,null,null,null,null,0]
["Няня. Специалист в области воспитания.",0,null,0,0,null,{"$f":"IF(G$2=1,1,0)","v":0},null,null,null,null,null,null,null,null,null,null,null,null,null,null,{"$f":"IF(V$2=1,1,0)","v":0},null,null,null,null,null,null,null,null,0]
["Менеджер по жилищно-коммунальным услугам",0,null,{"$f":"IF(D$2=1,1,0)","v":0},null,null,null,null,null,{"$f":"IF(J$2=1,1,0)","v":0},null,null,null,null,null,null,null,null,{"$f":"IF(S$2=1,1,0)","v":0},null,null,null,null,null,null,null,null,{"$f":"IF(AB$2=1,1,0)","v":0},null,null,0]
["Эффективное  управление многоквартирным домом в условиях современной экономики",0,{"$f":"IF(C$2=1,1,0)","v":0},{"$f":"IF(D$2=1,1,0)","v":0},null,null,null,null,null,{"$f":"IF(J$2=1,1,0)","v":0},null,null,null,null,null,null,null,null,{"$f":"IF(S$2=1,1,0)","v":0},null,null,null,null,null,null,null,null,null,null,null,0]
["Координатор-организатор праздничных мероприятий ",0,null,{"$f":"IF(D$2=1,1,0)","v":0},null,null,null,null,null,null,{"$f":"IF(K$2=1,1,0)","v":0},null,null,{"$f":"IF(N$2=1,1,0)","v":0},null,null,null,{"$f":"IF(R$2=1,1,0)","v":0},null,null,null,null,null,null,null,null,null,null,null,null,0]
["Декоратор праздничных мероприятий",0,null,null,{"$f":"IF(E$2=1,1,0)","v":0},null,null,null,null,null,{"$f":"IF(K$2=1,1,0)","v":0},{"$f":"IF(L$2=1,1,0)","v":0},null,null,null,null,null,{"$f":"IF(R$2=1,1,0)","v":0},null,null,null,null,null,null,null,null,null,null,null,null,0]
["Дизайн среды и декорирование",0,null,null,{"$f":"IF(E$2=1,1,0)","v":0},null,null,null,null,null,{"$f":"IF(K$2=1,1,0)","v":0},{"$f":"IF(L$2=1,1,0)","v":0},null,null,null,null,null,{"$f":"IF(R$2=1,1,0)","v":0},null,null,null,null,null,null,null,null,null,null,null,null,0]
["Стилист-имиджмейкер",0,null,{"$f":"IF(D$2=1,1,0)","v":0},{"$f":"IF(E$2=1,1,0)","v":0},null,null,null,null,null,null,{"$f":"IF(L$2=1,1,0)","v":0},null,null,null,{"$f":"IF(P$2=1,1,0)","v":0},null,null,null,null,null,null,null,null,null,null,null,null,null,null,0]
["Современные технологии здорового питания",0,null,null,{"$f":"IF(E$2=1,1,0)","v":0},null,null,null,null,null,null,null,null,null,null,{"$f":"IF(P$2=1,1,0)","v":0},null,null,null,null,null,null,null,null,null,null,null,null,{"$f":"IF(AC$2=1,1,0)","v":0},{"$f":"IF(AD$2=1,1,0)","v":0},{"$f":"SUM(C36:AD36)","v":0}]
["Специалист по агротуризму",0,null,{"$f":"IF(D$2=1,1,0)","v":0},null,null,null,null,null,null,null,null,null,null,{"$f":"IF(O$2=1,1,0)","v":0},null,null,{"$f":"IF(R$2=1,1,0)","v":0},null,null,null,null,null,null,null,null,null,{"$f":"IF(AB$2=1,1,0)","v":0},null,null,0]
["Российский и международный сервис и  туризм",0,null,{"$f":"IF(D$2=1,1,0)","v":0},null,{"$f":"IF(F$2=1,1,0)","v":0},null,null,null,null,null,null,null,{"$f":"IF(N$2=1,1,0)","v":0},{"$f":"IF(O$2=1,1,0)","v":0},null,null,null,null,null,null,null,null,null,null,null,null,null,null,null,0]
["Сыровар ",0,null,null,{"$f":"IF(E$2=1,1,0)","v":0},null,null,null,null,null,null,null,{"$f":"IF(M$2=1,1,0)","v":0},null,null,null,null,null,null,null,null,null,null,null,null,null,null,{"$f":"IF(AB$2=1,1,0)","v":0},null,{"$f":"IF(AD$2=1,1,0)","v":0},0]
[null,{"$f":"MAX(B3:B39)","v":0}]
[null,{"$f":"MAX(B3:B40)","v":0}]
[null,{"$f":"MAX(B3:B39)","v":0}]

{"sheet":"Рекомендации","index":4,"n_rows":41,"n_cols":2,"rows_kept":41,"cut":false,"hidden":false,"merged":[]}
[]
[{"$f":"база!A3","v":"Деловые и межкультурные коммуникации: русский и иностранный языки"},{"$f":"база!B3","v":0}]
[{"$f":"база!A4","v":"Сопровождение протокольных мероприятий и кросскультурные коммуникации"},{"$f":"база!B4","v":0}]
[{"$f":"база!A5","v":"Профориентационный коучинг"},{"$f":"база!B5","v":0}]
[{"$f":"база!A6","v":"Профориентационный консультант. Игропрактик."},{"$f":"база!B6","v":0}]
[{"$f":"база!A7","v":"Практическая психология и коучинг"},{"$f":"база!B7","v":0}]
[{"$f":"база!A8","v":"Метафорические техники в психологическом консультировании и бизнес-тренинге"},{"$f":"база!B8","v":0}]
[{"$f":"база!A9","v":"Создание и продвижение личного бренда"},{"$f":"база!B9","v":0}]
[{"$f":"база!A10","v":"Инструктор - игромастер детских развивающих программ"},{"$f":"база!B10","v":0}]
[{"$f":"база!A11","v":"Инструктор- игротехнолог по работе с детьми с ОВЗ"},{"$f":"база!B11","v":0}]
[{"$f":"база!A12","v":"Инструктор активного долголетия"},{"$f":"база!B12","v":0}]
[{"$f":"база!A13","v":"Наставник по экономической социализации детей и подростков"},{"$f":"база!B13","v":0}]
[{"$f":"база!A14","v":"Цифровой куратор"},{"$f":"база!B14","v":0}]
[{"$f":"база!A15","v":"Адаптация к цифровой среде и цифровая грамотность"},{"$f":"база!B15","v":0}]
[{"$f":"база!A16","v":"Web - дизайн, продвижение  и сопровождение  сайта"},{"$f":"база!B16","v":0}]
[{"$f":"база!A17","v":"Менеджмент продаж и digital маркетинг, SMM"},{"$f":"база!B17","v":0}]
[{"$f":"база!A18","v":"Управление  салоном красоты"},{"$f":"база!B18","v":0}]
[{"$f":"база!A19","v":"Операционный менеджмент"},{"$f":"база!B19","v":0}]
[{"$f":"база!A20","v":"Стратегический маркетинг"},{"$f":"база!B20","v":0}]
[{"$f":"база!A21","v":"Управляющий контактным центром"},{"$f":"база!B21","v":0}]
[{"$f":"база!A22","v":"Стратегический менеджмент и управление персоналом"},{"$f":"база!B22","v":0}]
[{"$f":"база!A23","v":"Системный менеджмент и основные инструменты бережливого производства"},{"$f":"база!B23","v":0}]
[{"$f":"база!A24","v":"Логистика и управление закупками"},{"$f":"база!B24","v":0}]
[{"$f":"база!A25","v":"Финансовая безопасность бизнеса"},{"$f":"база!B25","v":0}]
[{"$f":"база!A26","v":"Бариста"},{"$f":"база!B26","v":0}]
[{"$f":"база!A27","v":"Барбер"},{"$f":"база!B27","v":0}]
[{"$f":"база!A28","v":"Детские стрижки: профессиональные и психологические аспекты "},{"$f":"база!B28","v":0}]
[{"$f":"база!A29","v":"Няня. Специалист в области воспитания."},{"$f":"база!B29","v":0}]
[{"$f":"база!A30","v":"Менеджер по жилищно-коммунальным услугам"},{"$f":"база!B30","v":0}]
[{"$f":"база!A31","v":"Эффективное  управление многоквартирным домом в условиях современной экономики"},{"$f":"база!B31","v":0}]
[{"$f":"база!A32","v":"Координатор-организатор праздничных мероприятий "},{"$f":"база!B32","v":0}]
[{"$f":"база!A33","v":"Декоратор праздничных мероприятий"},{"$f":"база!B33","v":0}]
[{"$f":"база!A34","v":"Дизайн среды и декорирование"},{"$f":"база!B34","v":0}]
[{"$f":"база!A35","v":"Стилист-имиджмейкер"},{"$f":"база!B35","v":0}]
[{"$f":"база!A36","v":"Современные технологии здорового питания"},{"$f":"база!B36","v":0}]
[{"$f":"база!A37","v":"Специалист по агротуризму"},{"$f":"база!B37","v":0}]
[{"$f":"база!A38","v":"Российский и международный сервис и  туризм"},{"$f":"база!B38","v":0}]
[{"$f":"база!A39","v":"Сыровар "},{"$f":"база!B39","v":0}]
[]
[]
[null,{"$f":"база!B42","v":0}]